[Event "WYCC 2018 G14"]
[Site "Halkidiki"]
[Date "2018.10.21"]
[Round "3"]
[White "Mironenko, Galina"]
[Black "Bellahcene, Sofia"]
[Result "1/2-1/2"]
[ECO "D02"]
[WhiteElo "2053"]
[BlackElo "1764"]
[Annotator "NA"]
[PlyCount "91"]
[EventDate "2018.10.20"]
[EventType "swiss"]
[EventCountry "GRE"]
[SourceTitle "playchess.com"]
[Source "ChessBase"]
[SourceQuality "1"]
[TimeControl "40/5400+30:1800+30"]

1. d4 {[%emt 0:00:00]} d5 {[%emt 0:00:06]} 2. Nf3 {[%emt 0:00:00]} Nf6 {[%emt 0:00:14]} 3. g3 {[%emt 0:00:06]} e6 {[%emt 0:00:25]} 4. Bg2 {[%emt 0:00:07]} b5 {[%emt 0:01:32]} 5. O-O {[%emt 0:00:39]} Bd6 {[%emt 0:03:53]} 6. b3 {[%emt 0:01:49]} Bb7 {[%emt 0:03:14]} 7. Bb2 {[%emt 0:00:48]} O-O {[%emt 0:01:06]} 8. Ne5 {[%emt 0:02:51]} b4 {[%emt 0:05:07]} 9. c4 {[%emt 0:03:29]} bxc3 {[%emt 0:01:54]} 10. Bxc3 {[%emt 0:05:58]} Nbd7 {[%emt 0:02:04]} 11. Nd2 {[%emt 0:03:27]} c5 {[%emt 0:03:23]} 12. Nxd7 {[%emt 0:04:44]} Nxd7 {[%emt 0:00:39]} 13. e4 {[%emt 0:06:06]} cxd4 {[%emt 0:04:37]} 14. Bxd4 {[%emt 0:00:18]} e5 {[%emt 0:00:19]} 15. Bb2 {[%emt 0:00:26]} Ba6 {[%emt 0:02:53]} 16. Re1 {[%emt 0:02:02]} d4 {[%emt 0:01:14]} 17. f4 {[%emt 0:07:24]} Qb6 {[%emt 0:10:26]} 18. f5 {[%emt 0:14:33]} Rac8 {[%emt 0:02:50]} 19. Kh1 {[%emt 0:05:15]} Nc5 {[%emt 0:03:21]} 20. Bf1 {[%emt 0:03:01]} Bxf1 {[%emt 0:04:26]} 21. Rxf1 {[%emt 0:02:23]} Nd3 {[%emt 0:04:41]} 22. Nc4 {[%emt 0:02:22]} Rxc4 {[%emt 0:04:37]} 23. Qxd3 {[%emt 0:01:27]} Rc7 {[%emt 0:00:33]} 24. g4 {[%emt 0:04:41]} Be7 {[%emt 0:03:09]} 25. Qg3 {[%emt 0:03:24]} Rc2 {[%emt 0:03:50]} 26. Bc1 {[%emt 0:03:54]} Qb5 {[%emt 0:02:54]} 27. Rg1 {[%emt 0:02:50]} Qc6 {[%emt 0:02:07]} 28. Qf3 {[%emt 0:02:33]} Qc3 {[%emt 0:02:48]} 29. Qxc3 {[%emt 0:00:56]} Rxc3 {[%emt 0:01:33]} 30. Bd2 {[%emt 0:00:34]} Rc2 {[%emt 0:01:26]} 31. Rgd1 {[%emt 0:01:35]} h6 {[%emt 0:00:28]} 32. Kg1 {[%emt 0:00:55]} Rd8 {[%emt 0:02:17]} 33. Kf1 {[%emt 0:01:53]} d3 {[%emt 0:01:06]} 34. Be3 {[%emt 0:01:05]} Rxh2 {[%emt 0:03:38]} 35. Bf2 {[%emt 0:00:53]} Bh4 {[%emt 0:05:29]} 36. Bxa7 {[%emt 0:01:24]} d2 {[%emt 0:01:57]} 37. Bg1 {[%emt 0:03:08]} Rh3 {[%emt 0:00:35]} 38. Ke2 {[%emt 0:00:33]} Rg3 {[%emt 0:02:21]} 39. Be3 {[%emt 0:02:04]} Rxg4 {[%emt 0:00:23]} 40. a4 {[%emt 0:00:00]} Rxe4 {[%emt 0:00:00]} 41. Kf3 {[%emt 0:03:10]} Rb4 {[%emt 0:03:44]} 42. Rxd2 {[%emt 0:02:58]} Rxd2 {[%emt 0:03:41]} 43. Bxd2 {[%emt 0:00:06]} Rxb3+ {[%emt 0:01:12]} 44. Ke4 {[%emt 0:00:05]} Rb6 {[%emt 0:03:32]} 45. a5 {[%emt 0:00:42]} Ra6 {[%emt 0:04:36]} 46. Rb1 {[%emt 0:01:00]} 1/2-1/2

[Event "WYCC 2018 G14"]
[Site "Halkidiki"]
[Date "2018.10.21"]
[Round "3"]
[White "Wikar, Martyna"]
[Black "Ning, Kaiyu"]
[Result "0-1"]
[ECO "B01"]
[WhiteElo "2024"]
[BlackElo "2217"]
[Annotator "NA"]
[PlyCount "74"]
[EventDate "2018.10.20"]
[EventType "swiss"]
[EventCountry "GRE"]
[SourceTitle "playchess.com"]
[Source "ChessBase"]
[SourceQuality "1"]
[TimeControl "40/5400+30:1800+30"]

1. e4 d5 2. exd5 Qxd5 3. Nf3 Bg4 4. Be2 Nc6 5. h3 Bxf3 6. Bxf3 Qd7 7. O-O Nf6 8. d4 O-O-O 9. c3 e5 10. dxe5 (10. Qb3 $14 exd4 11. cxd4) 10... Nxe5 11. Qxd7+ Rxd7 12. Be2 Bc5 13. Nd2 Re8 14. Nb3 {[#]} Bb6 $1 15. Bg5 Ne4 16. Bf4 f5 17. Bxe5 Rxe5 $17 18. Bf3 a5 19. a4 Nd2 20. Nxd2 Rxd2 21. Rab1 f4 22. b3 Rc2 23. c4 Bd4 24. Rbd1 c5 25. h4 h5 26. Rb1 g6 27. Bd1 Rd2 28. Bf3 Kc7 29. Bd1 Rxf2 30. Rxf2 Re1+ 31. Kh2 Bxf2 32. Bc2 Re6 33. Rd1 Bxh4 34. Rd5 Bg3+ 35. Kh3 Re1 36. Rd1 g5 37. Rxe1 g4# 0-1

[Event "WYCC 2018 G14"]
[Site "Halkidiki"]
[Date "2018.10.21"]
[Round "3"]
[White "Toncheva, Nadya"]
[Black "De Rycke, Tyani"]
[Result "1-0"]
[ECO "D10"]
[WhiteElo "2002"]
[BlackElo "1758"]
[Annotator "NA"]
[PlyCount "117"]
[EventDate "2018.10.20"]
[EventType "swiss"]
[EventCountry "GRE"]
[SourceTitle "playchess.com"]
[Source "ChessBase"]
[SourceQuality "1"]
[TimeControl "40/5400+30:1800+30"]

1. d4 {[%emt 0:00:00]} d5 {[%emt 0:00:00]} 2. c4 {[%emt 0:00:00]} c6 {[%emt 0:00:00]} 3. Nc3 {[%emt 0:00:00]} Nf6 {[%emt 0:00:00]} 4. e3 {[%emt 0:00:00]} Bf5 {[%emt 0:00:00]} 5. cxd5 {[%emt 0:00:00]} cxd5 {[%emt 0:00:15]} 6. Qb3 {[%emt 0:00:00]} Qd7 {[%emt 0:00:42]} 7. Nf3 {[%emt 0:00:00]} e6 {[%emt 0:03:19]} 8. Bb5 {[%emt 0:00:53]} Nc6 {[%emt 0:00:10]} 9. Ne5 {[%emt 0:00:05]} Qc7 {[%emt 0:02:19]} 10. Qa4 {[%emt 0:00:09]} Rc8 {[%emt 0:03:02]} 11. Qxa7 {[%emt 0:01:19]} Bb4 {[%emt 0:04:09]} 12. Bd2 {[%emt 0:05:07]} O-O {[%emt 0:00:31]} 13. Bxc6 {[%emt 0:00:04]} bxc6 {[%emt 0:01:07]} 14. Qxc7 {[%emt 0:00:05]} Rxc7 {[%emt 0:00:06]} 15. f3 {[%emt 0:00:34]} h6 {[%emt 0:01:46]} 16. Ke2 {[%emt 0:03:48]} Bd6 {[%emt 0:09:20]} 17. Nd3 {[%emt 0:06:15]} Rb8 {[%emt 0:00:56]} 18. b3 {[%emt 0:00:11]} Ba3 {[%emt 0:02:04]} 19. Bc1 {[%emt 0:10:07]} Bd6 {[%emt 0:05:06]} 20. g4 {[%emt 0:09:26]} Bh7 {[%emt 0:02:01]} 21. Na4 {[%emt 0:00:27]} Nd7 {[%emt 0:01:39]} 22. Bd2 {[%emt 0:01:55]} Kf8 {[%emt 0:04:31]} 23. h3 {[%emt 0:02:09]} Ke7 {[%emt 0:02:17]} 24. Rhc1 {[%emt 0:00:50]} Ba3 {[%emt 0:00:23]} 25. Rc3 {[%emt 0:01:59]} f6 {[%emt 0:06:21]} 26. Bc1 {[%emt 0:02:19]} Bd6 {[%emt 0:00:45]} 27. Nac5 {[%emt 0:00:35]} Nxc5 {[%emt 0:02:12]} 28. Nxc5 {[%emt 0:00:06]} Ra7 {[%emt 0:03:11]} 29. Nd3 {[%emt 0:03:57]} Kd7 {[%emt 0:00:52]} 30. a3 {[%emt 0:02:42]} Bg6 {[%emt 0:05:23]} 31. Bb2 {[%emt 0:00:36]} Rab7 {[%emt 0:04:33]} 32. b4 {[%emt 0:00:15]} Ra7 {[%emt 0:00:13]} 33. Rac1 {[%emt 0:00:32]} Rb6 {[%emt 0:01:38]} 34. h4 {[%emt 0:03:18]} Ra8 {[%emt 0:05:05]} 35. Rg1 {[%emt 0:03:55]} Rh8 {[%emt 0:02:08]} 36. Nc1 {[%emt 0:00:09]} e5 {[%emt 0:06:30]} 37. Nb3 {[%emt 0:03:38]} Rbb8 {[%emt 0:05:41]} 38. Rcc1 {[%emt 0:06:21]} e4 {[%emt 0:12:06]} 39. f4 {[%emt 0:02:32]} Bf7 {[%emt 0:00:20]} 40. Nc5+ {[%emt 0:00:00]} Ke7 {[%emt 0:00:00]} 41. Bc3 {[%emt 0:02:24]} Ra8 {[%emt 0:01:49]} 42. Ra1 {[%emt 0:00:29]} Bxc5 {[%emt 0:01:44]} 43. dxc5 {[%emt 0:00:06]} Ra4 {[%emt 0:00:29]} 44. Bb2 {[%emt 0:01:16]} Be6 {[%emt 0:01:00]} 45. Rad1 {[%emt 0:01:45]} Kf7 {[%emt 0:00:39]} 46. b5 {[%emt 0:03:37]} Rb8 {[%emt 0:04:49]} 47. b6 {[%emt 0:00:07]} Bc8 {[%emt 0:00:46]} 48. h5 {[%emt 0:04:09]} g6 {[%emt 0:02:43]} 49. hxg6+ {[%emt 0:03:31]} Kxg6 {[%emt 0:00:17]} 50. Kd2 {[%emt 0:04:49]} Ra5 {[%emt 0:00:28]} 51. Rc1 {[%emt 0:00:07]} Ba6 {[%emt 0:00:35]} 52. f5+ {[%emt 0:02:11]} Kf7 {[%emt 0:00:54]} 53. Rh1 {[%emt 0:00:23]} Kg7 {[%emt 0:01:13]} 54. Rh5 {[%emt 0:00:19]} Rh8 {[%emt 0:00:30]} 55. g5 {[%emt 0:01:53]} hxg5 {[%emt 0:01:24]} 56. Bxf6+ Kxf6 {[%emt 0:00:06]} 57. Rxh8 {[%emt 0:01:26]} Kxf5 {[%emt 0:01:24]} 58. Ra8 {[%emt 0:00:36]} Rxa3 {[%emt 0:00:18]} 59. Rxa6 {[%emt 0:00:11]} 1-0

[Event "WYCC 2018 G14"]
[Site "Halkidiki"]
[Date "2018.10.21"]
[Round "3"]
[White "Kamalidenova, Meruert"]
[Black "Divya Deshmukh"]
[Result "1-0"]
[ECO "B42"]
[WhiteElo "1999"]
[BlackElo "2180"]
[Annotator "ChessBase"]
[PlyCount "157"]
[EventDate "2018.10.20"]
[EventType "swiss"]
[EventCountry "GRE"]
[SourceTitle "playchess.com"]
[Source "ChessBase"]
[SourceQuality "1"]
[TimeControl "40/5400+30:1800+30"]

1. e4 {[%emt 0:00:00]} c5 {[%emt 0:00:00]} 2. Nf3 {[%emt 0:00:00]} e6 {[%emt 0:00:00]} 3. d4 {[%emt 0:00:00]} cxd4 {[%emt 0:00:00]} 4. Nxd4 {[%emt 0:00:00]} a6 {[%emt 0:00:00]} 5. Bd3 {[%emt 0:00:11]} Qc7 {[%emt 0:00:00]} 6. O-O {[%emt 0:00:24]} Nc6 {[%emt 0:00:00]} 7. Nxc6 {[%emt 0:00:58]} bxc6 {[%emt 0:00:00]} 8. c4 {[%emt 0:01:39]} Nf6 {[%emt 0:01:11]} 9. Nc3 {[%emt 0:02:03]} Be7 {[%emt 0:07:00]} 10. Qe2 {[%emt 0:03:05]} d6 {[%emt 0:02:16]} 11. f4 {[%emt 0:03:24]} e5 {[%emt 0:06:02]} 12. f5 {[%emt 0:02:20]} O-O {[%emt 0:01:15]} 13. g4 {[%emt 0:02:39]} d5 {[%emt 0:20:01]} 14. g5 {[%emt 0:08:08]} Nxe4 {[%emt 0:02:55]} 15. Nxe4 {[%emt 0:06:18]} dxe4 {[%emt 0:00:08]} 16. Bxe4 {[%emt 0:01:04]} Bc5+ {[%emt 0:18:19]} 17. Kh1 {[%emt 0:02:48]} a5 {[%emt 0:04:33]} 18. Qh5 {[%emt 0:09:11]} g6 {[%emt 0:04:03]} 19. Qh6 {[%emt 0:09:39]} Rd8 {[%emt 0:02:01]} 20. Be3 {[%emt 0:03:46]} Bf8 {[%emt 0:01:07]} 21. Qh4 {[%emt 0:01:26]} Bb7 {[%emt 0:04:37]} 22. c5 {[%emt 0:05:08]} Ba6 {[%emt 0:00:54]} 23. Rf3 {[%emt 0:04:43]} Be2 {[%emt 0:12:28]} 24. Rh3 {[%emt 0:03:03]} Bh5 {[%emt 0:00:02]} 25. Bf3 {[%emt 0:00:37]} Bxf3+ {[%emt 0:00:16]} 26. Rxf3 {[%emt 0:00:08]} Qd7 {[%emt 0:01:21]} 27. Rh3 {[%emt 0:01:15]} h5 {[%emt 0:02:06]} 28. gxh6 {[%emt 0:02:07]} Kh7 {[%emt 0:00:38]} 29. fxg6+ {[%emt 0:01:37]} fxg6 {[%emt 0:00:14]} 30. Rf1 {[%emt 0:01:33]} Qd5+ {[%emt 0:03:09]} 31. Rhf3 {[%emt 0:03:44]} Rd7 {[%emt 0:00:29]} 32. Qg4 {[%emt 0:02:51]} Re8 {[%emt 0:05:18]} 33. Qxd7+ {[%emt 0:01:45]} Qxd7 {[%emt 0:00:03]} 34. Rf7+ {[%emt 0:00:05]} Qxf7 {[%emt 0:00:06]} 35. Rxf7+ {[%emt 0:00:04]} Kg8 {[%emt 0:00:34]} 36. Rf6 {[%emt 0:01:19]} Rc8 {[%emt 0:02:44]} 37. Rxg6+ {[%emt 0:00:34]} Kf7 {[%emt 0:00:32]} 38. h7 {[%emt 0:00:51]} Bg7 {[%emt 0:00:52]} 39. Rd6 {[%emt 0:00:19]} Bf6 {[%emt 0:01:08]} 40. Kg2 {[%emt 0:00:00]} Kg6 {[%emt 0:00:00]} 41. h4 {[%emt 0:02:44]} Kf5 {[%emt 0:02:06]} 42. Bg5 {[%emt 0:01:02]} Bh8 {[%emt 0:00:25]} 43. Kf3 {[%emt 0:00:38]} e4+ {[%emt 0:04:34]} 44. Ke2 {[%emt 0:01:27]} Bxb2 {[%emt 0:00:58]} 45. Bd2 {[%emt 0:05:13]} a4 {[%emt 0:06:55]} 46. h5 {[%emt 0:01:09]} Bh8 {[%emt 0:04:13]} 47. Ba5 {[%emt 0:04:09]} Be5 {[%emt 0:05:33]} 48. Bb6 {[%emt 0:04:32]} Rh8 {[%emt 0:02:30]} 49. Rd7 {[%emt 0:01:44]} Ke6 {[%emt 0:03:31]} 50. Ra7 {[%emt 0:02:23]} Kf5 {[%emt 0:00:23]} 51. a3 {[%emt 0:02:44]} Bb2 {[%emt 0:03:30]} 52. Ba5 {[%emt 0:03:05]} Re8 {[%emt 0:00:03]} 53. Bd2 {[%emt 0:02:38]} e3 {[%emt 0:01:40]} 54. Bxe3 {[%emt 0:03:33]} Kg4 {[%emt 0:01:25]} 55. h6 {[%emt 0:04:15]} Kh5 {[%emt 0:00:47]} 56. Rxa4 {[%emt 0:01:01]} Kg6 {[%emt 0:00:20]} 57. Kf3 {[%emt 0:00:48]} Kxh7 {[%emt 0:00:17]} 58. Ra7+ {[%emt 0:00:19]} Kg6 {[%emt 0:00:04]} 59. a4 {[%emt 0:00:31]} Rf8+ {[%emt 0:01:21]} 60. Kg4 {[%emt 0:00:47]} Re8 {[%emt 0:00:17]} 61. Bf4 {[%emt 0:01:17]} Re4 {[%emt 0:00:43]} 62. Kf3 {[%emt 0:02:16]} Rc4 {[%emt 0:00:29]} 63. Be3 {[%emt 0:00:45]} Rh4 {[%emt 0:00:31]} 64. Rc7 {[%emt 0:01:06]} Rxa4 {[%emt 0:00:26]} 65. Rxc6+ {[%emt 0:00:06]} Kh7 {[%emt 0:00:07]} 66. Rc7+ {[%emt 0:00:18]} Kg6 {[%emt 0:00:21]} 67. Rc8 {[%emt 0:01:12]} Rc4 {[%emt 0:01:05]} 68. c6 {[%emt 0:00:17]} Be5 {[%emt 0:00:25]} 69. Ke2 {[%emt 0:00:45]} Rc3 {[%emt 0:00:37]} 70. Kd2 {[%emt 0:00:17]} Rc4 {[%emt 0:00:28]} 71. Kd3 {[%emt 0:00:08]} Rh4 {[%emt 0:00:31]} 72. c7 {[%emt 0:00:41]} Bxc7 {[%emt 0:00:28]} 73. Rxc7 {[%emt 0:00:10]} Rh3 {[%emt 0:00:03]} 74. Ke4 {[%emt 0:00:30]} Rh4+ {[%emt 0:00:17]} 75. Bf4 {[%emt 0:00:12]} Rh1 {[%emt 0:00:13]} 76. Rc6+ {[%emt 0:00:41]} Kh7 {[%emt 0:00:13]} 77. Kf5 {[%emt 0:00:05]} Rf1 {[%emt 0:00:28]} 78. Rc7+ {[%emt 0:00:08]} Kh8 {[%emt 0:00:07]} 79. Kg6 {[%emt 0:00:09]} 1-0

[Event "WYCC 2018 G14"]
[Site "Halkidiki"]
[Date "2018.10.21"]
[Round "3"]
[White "Guillo Longares, Cecilia"]
[Black "Sleurs, Juliette"]
[Result "1/2-1/2"]
[ECO "D43"]
[WhiteElo "1998"]
[BlackElo "1812"]
[Annotator "NA"]
[PlyCount "108"]
[EventDate "2018.10.20"]
[EventType "swiss"]
[EventCountry "GRE"]
[SourceTitle "playchess.com"]
[Source "ChessBase"]
[SourceQuality "1"]
[TimeControl "40/5400+30:1800+30"]

1. d4 {[%emt 0:00:00]} d5 {[%emt 0:00:00]} 2. c4 {[%emt 0:00:00]} c6 {[%emt 0:00:00]} 3. Nc3 {[%emt 0:00:00]} Nf6 {[%emt 0:00:00]} 4. Nf3 {[%emt 0:00:00]} e6 {[%emt 0:00:00]} 5. cxd5 {[%emt 0:00:00]} exd5 {[%emt 0:01:25]} 6. Bg5 {[%emt 0:00:00]} Bf5 {[%emt 0:00:24]} 7. e3 {[%emt 0:00:12]} Nbd7 {[%emt 0:02:02]} 8. Bd3 {[%emt 0:00:40]} Bxd3 {[%emt 0:00:54]} 9. Qxd3 {[%emt 0:00:04]} Bd6 {[%emt 0:02:57]} 10. O-O {[%emt 0:00:12]} O-O {[%emt 0:01:42]} 11. Rab1 {[%emt 0:00:14]} h6 {[%emt 0:01:54]} 12. Bh4 {[%emt 0:00:06]} a5 {[%emt 0:06:42]} 13. a3 {[%emt 0:00:40]} a4 {[%emt 0:05:13]} 14. Qc2 {[%emt 0:00:13]} Qa5 {[%emt 0:07:34]} 15. Nd2 {[%emt 0:02:16]} Rfe8 {[%emt 0:06:11]} 16. Rbe1 {[%emt 0:00:39]} Ng4 {[%emt 0:12:36]} 17. Bg3 {[%emt 0:01:16]} Bxg3 {[%emt 0:00:11]} 18. hxg3 {[%emt 0:00:05]} Ngf6 {[%emt 0:07:02]} 19. f3 {[%emt 0:05:11]} Qa7 {[%emt 0:03:02]} 20. Kf2 {[%emt 0:00:52]} Nb6 {[%emt 0:06:45]} 21. Rh1 {[%emt 0:05:56]} Nc4 {[%emt 0:03:15]} 22. Nxc4 {[%emt 0:01:27]} dxc4 {[%emt 0:00:07]} 23. Qf5 {[%emt 0:03:26]} b5 {[%emt 0:06:01]} 24. g4 {[%emt 0:03:51]} Qd7 {[%emt 0:02:49]} 25. Qf4 {[%emt 0:01:11]} Nd5 {[%emt 0:03:15]} 26. Nxd5 {[%emt 0:01:58]} Qxd5 {[%emt 0:00:46]} 27. Rh5 {[%emt 0:00:32]} Qe6 {[%emt 0:13:31]} 28. Re5 {[%emt 0:18:05]} Qg6 {[%emt 0:01:05]} 29. Rf5 {[%emt 0:00:59]} Rad8 {[%emt 0:02:03]} 30. g5 {[%emt 0:03:16]} Rd5 {[%emt 0:02:01]} 31. Rxd5 {[%emt 0:02:15]} cxd5 {[%emt 0:00:14]} 32. gxh6 {[%emt 0:00:42]} Qxh6 {[%emt 0:00:50]} 33. Qxh6 {[%emt 0:00:45]} gxh6 {[%emt 0:00:06]} 34. Ke2 {[%emt 0:00:42]} f5 {[%emt 0:01:29]} 35. Kd2 {[%emt 0:00:56]} Kf7 {[%emt 0:00:11]} 36. Kc3 {[%emt 0:02:02]} Rg8 {[%emt 0:01:18]} 37. Re2 {[%emt 0:00:53]} Ke6 {[%emt 0:01:09]} 38. Kb4 {[%emt 0:00:22]} Rb8 {[%emt 0:00:24]} 39. Kc5 {[%emt 0:00:27]} b4 {[%emt 0:00:56]} 40. axb4 {[%emt 0:00:00]} Rc8+ {[%emt 0:00:00]} 41. Kb5 {[%emt 0:02:50]} Ra8 {[%emt 0:02:03]} 42. e4 {[%emt 0:02:00]} fxe4 {[%emt 0:01:45]} 43. fxe4 {[%emt 0:00:17]} a3 {[%emt 0:00:53]} 44. bxa3 {[%emt 0:00:42]} c3 {[%emt 0:06:06]} 45. e5 {[%emt 0:07:31]} Rc8 {[%emt 0:10:20]} 46. Rc2 {[%emt 0:00:37]} Kf5 {[%emt 0:00:22]} 47. Ka4 {[%emt 0:00:13]} Ke4 {[%emt 0:00:28]} 48. Kb3 {[%emt 0:00:15]} Kxd4 {[%emt 0:00:41]} 49. e6 {[%emt 0:00:48]} Kd3 {[%emt 0:00:28]} 50. e7 {[%emt 0:03:17]} d4 {[%emt 0:00:09]} 51. Rc1 {[%emt 0:04:17]} Kd2 {[%emt 0:01:29]} 52. Rc2+ {[%emt 0:01:38]} Kd3 {[%emt 0:00:48]} 53. Rc1 {[%emt 0:02:50]} Kd2 {[%emt 0:03:33]} 54. Rc2+ {[%emt 0:07:35]} Kd3 {[%emt 0:04:40]} 1/2-1/2

[Event "WYCC 2018 G14"]
[Site "Halkidiki"]
[Date "2018.10.21"]
[Round "3"]
[White "Eizaguerri Floris, Maria"]
[Black "Garifullina, Leya"]
[Result "1/2-1/2"]
[ECO "C00"]
[WhiteElo "1987"]
[BlackElo "2106"]
[Annotator "NA"]
[PlyCount "71"]
[EventDate "2018.10.20"]
[EventType "swiss"]
[EventCountry "GRE"]
[SourceTitle "playchess.com"]
[Source "ChessBase"]
[SourceQuality "1"]
[TimeControl "40/5400+30:1800+30"]

1. e4 {[%emt 0:00:00]} e6 {[%emt 0:00:00]} 2. d4 {[%emt 0:00:00]} d5 {[%emt 0:00:00]} 3. Bd3 {[%emt 0:00:00]} dxe4 {[%emt 0:01:17]} 4. Bxe4 {[%emt 0:00:00]} Nf6 {[%emt 0:00:07]} 5. Bf3 {[%emt 0:00:04]} c5 {[%emt 0:01:29]} 6. Ne2 {[%emt 0:00:09]} Nc6 {[%emt 0:01:53]} 7. Be3 {[%emt 0:00:07]} e5 {[%emt 0:10:36]} 8. Bxc6+ {[%emt 0:10:25]} bxc6 {[%emt 0:02:52]} 9. c3 {[%emt 0:00:37]} cxd4 {[%emt 0:05:54]} 10. cxd4 {[%emt 0:00:10]} exd4 {[%emt 0:00:49]} 11. Qxd4 {[%emt 0:04:22]} Qxd4 {[%emt 0:01:28]} 12. Bxd4 {[%emt 0:00:51]} Be7 {[%emt 0:02:57]} 13. O-O {[%emt 0:00:57]} c5 {[%emt 0:03:08]} 14. Be5 {[%emt 0:04:10]} O-O {[%emt 0:01:32]} 15. Nbc3 {[%emt 0:02:33]} Ba6 {[%emt 0:01:05]} 16. Rfd1 {[%emt 0:02:19]} Rfd8 {[%emt 0:08:26]} 17. Bc7 {[%emt 0:09:42]} Re8 {[%emt 0:01:01]} 18. Nf4 {[%emt 0:05:25]} Bb7 {[%emt 0:03:34]} 19. h3 {[%emt 0:08:55]} h6 {[%emt 0:06:37]} 20. Rac1 {[%emt 0:05:28]} Bf8 {[%emt 0:03:13]} 21. Rc2 {[%emt 0:07:10]} Ne4 {[%emt 0:06:05]} 22. Nb5 {[%emt 0:04:46]} a6 {[%emt 0:02:40]} 23. Na3 {[%emt 0:01:32]} Rac8 {[%emt 0:03:58]} 24. Ba5 {[%emt 0:00:53]} Nd6 {[%emt 0:01:20]} 25. Nd5 {[%emt 0:01:41]} Nf5 {[%emt 0:09:06]} 26. Nb6 {[%emt 0:03:07]} Nd4 {[%emt 0:01:49]} 27. Nxc8 {[%emt 0:04:52]} Nxc2 {[%emt 0:01:01]} 28. Nxc2 {[%emt 0:00:18]} Bxc8 {[%emt 0:00:21]} 29. Ne3 {[%emt 0:00:39]} Be6 {[%emt 0:01:59]} 30. a3 {[%emt 0:05:31]} f5 {[%emt 0:06:11]} 31. Nd5 {[%emt 0:05:02]} Rb8 {[%emt 0:01:23]} 32. Bc3 {[%emt 0:00:49]} Rb7 {[%emt 0:01:31]} 33. Nf4 {[%emt 0:02:13]} Rd7 {[%emt 0:02:32]} 34. Rxd7 {[%emt 0:00:53]} Bxd7 {[%emt 0:00:06]} 35. Kf1 {[%emt 0:01:03]} Bd6 {[%emt 0:01:39]} 36. Nd5 {[%emt 0:05:17]} 1/2-1/2

[Event "WYCC 2018 G14"]
[Site "Halkidiki"]
[Date "2018.10.21"]
[Round "3"]
[White "Stepanyan, Eva"]
[Black "Vuong, Quynh Anh"]
[Result "1-0"]
[ECO "B19"]
[WhiteElo "1981"]
[BlackElo "1747"]
[Annotator "NA"]
[PlyCount "147"]
[EventDate "2018.10.20"]
[EventType "swiss"]
[EventCountry "GRE"]
[SourceTitle "playchess.com"]
[Source "ChessBase"]
[SourceQuality "1"]
[TimeControl "40/5400+30:1800+30"]

1. e4 {[%emt 0:00:00]} c6 {[%emt 0:00:00]} 2. d4 {[%emt 0:00:00]} d5 {[%emt 0:00:00]} 3. Nc3 {[%emt 0:00:00]} dxe4 {[%emt 0:00:00]} 4. Nxe4 {[%emt 0:00:00]} Bf5 {[%emt 0:00:00]} 5. Ng3 {[%emt 0:00:06]} Bg6 {[%emt 0:00:00]} 6. h4 {[%emt 0:00:10]} h6 {[%emt 0:00:00]} 7. Nf3 {[%emt 0:00:04]} Nd7 {[%emt 0:00:01]} 8. h5 {[%emt 0:00:03]} Bh7 {[%emt 0:00:06]} 9. Bd3 {[%emt 0:00:02]} Bxd3 {[%emt 0:00:09]} 10. Qxd3 {[%emt 0:00:05]} e6 {[%emt 0:00:06]} 11. Bd2 {[%emt 0:00:06]} Ngf6 {[%emt 0:00:18]} 12. O-O-O {[%emt 0:00:14]} Be7 {[%emt 0:00:04]} 13. Kb1 {[%emt 0:00:44]} O-O {[%emt 0:01:12]} 14. Ne4 {[%emt 0:00:41]} Nxe4 {[%emt 0:01:22]} 15. Qxe4 {[%emt 0:00:07]} Nf6 {[%emt 0:00:26]} 16. Qe2 {[%emt 0:00:16]} Qd5 {[%emt 0:00:18]} 17. Be3 {[%emt 0:07:17]} Qb5 {[%emt 0:01:19]} 18. Qe1 {[%emt 0:09:55]} Nd5 {[%emt 0:00:33]} 19. c3 {[%emt 0:11:56]} Bf6 {[%emt 0:05:00]} 20. g4 {[%emt 0:04:12]} Rfe8 {[%emt 0:01:33]} 21. Ne5 {[%emt 0:08:36]} Nxe3 {[%emt 0:01:49]} 22. Qxe3 {[%emt 0:00:10]} Bxe5 {[%emt 0:00:04]} 23. dxe5 {[%emt 0:00:08]} Red8 24. g5 {[%emt 0:03:20]} Rd5 {[%emt 0:03:20]} 25. Rxd5 {[%emt 0:02:17]} Qxd5 {[%emt 0:00:58]} 26. Rg1 {[%emt 0:00:14]} hxg5 {[%emt 0:02:13]} 27. Qxg5 {[%emt 0:00:49]} Qd3+ {[%emt 0:02:07]} 28. Kc1 {[%emt 0:02:18]} Qh7 {[%emt 0:01:50]} 29. h6 {[%emt 0:00:25]} Re8 {[%emt 0:01:35]} 30. Qf4 {[%emt 0:03:26]} Qf5 {[%emt 0:02:25]} 31. Rxg7+ {[%emt 0:01:36]} Kf8 {[%emt 0:00:04]} 32. Qxf5 {[%emt 0:03:06]} exf5 {[%emt 0:00:08]} 33. Rg5 {[%emt 0:00:05]} Ke7 {[%emt 0:01:29]} 34. Rxf5 {[%emt 0:00:08]} Rh8 {[%emt 0:00:27]} 35. Rf6 {[%emt 0:00:15]} Rg8 {[%emt 0:00:22]} 36. Kd2 {[%emt 0:05:46]} Rg5 {[%emt 0:00:12]} 37. f4 {[%emt 0:01:56]} Rg2+ {[%emt 0:02:01]} 38. Kc1 {[%emt 0:00:06]} a5 {[%emt 0:01:32]} 39. a4 {[%emt 0:00:08]} Rf2 {[%emt 0:00:49]} 40. Kb1 {[%emt 0:00:00]} Rh2 {[%emt 0:00:00]} 41. Ka2 {[%emt 0:00:26]} Re2 {[%emt 0:01:00]} 42. Kb1 {[%emt 0:02:12]} Re1+ {[%emt 0:00:41]} 43. Kc2 {[%emt 0:00:14]} Re2+ {[%emt 0:00:07]} 44. Kb3 {[%emt 0:00:14]} Rh2 {[%emt 0:00:19]} 45. Ka3 {[%emt 0:03:25]} Rh3 {[%emt 0:00:08]} 46. Rd6 {[%emt 0:12:52]} Rf3 {[%emt 0:00:28]} 47. Kb3 {[%emt 0:00:47]} Rf2 {[%emt 0:00:39]} 48. Ka2 {[%emt 0:00:32]} Rh2 {[%emt 0:01:28]} 49. f5 {[%emt 0:04:47]} Rh5 {[%emt 0:00:12]} 50. f6+ {[%emt 0:00:25]} Ke8 {[%emt 0:00:05]} 51. e6 {[%emt 0:00:13]} fxe6 {[%emt 0:00:24]} 52. Rxe6+ {[%emt 0:00:01]} Kf7 {[%emt 0:00:43]} 53. Re7+ {[%emt 0:00:05]} Kxf6 {[%emt 0:00:07]} 54. Rxb7 {[%emt 0:00:03]} Rxh6 {[%emt 0:00:31]} 55. Rc7 {[%emt 0:00:09]} Ke5 {[%emt 0:00:45]} 56. Ra7 {[%emt 0:00:08]} Kd6 {[%emt 0:00:21]} 57. Rxa5 {[%emt 0:00:04]} Rh3 {[%emt 0:00:19]} 58. Rg5 {[%emt 0:00:36]} Kc7 {[%emt 0:00:18]} 59. Rc5 {[%emt 0:00:27]} Kb6 {[%emt 0:00:38]} 60. b4 {[%emt 0:00:11]} Rh2+ {[%emt 0:00:30]} 61. Kb3 {[%emt 0:00:08]} Rh3 {[%emt 0:00:11]} 62. a5+ {[%emt 0:01:28]} Kb7 {[%emt 0:00:24]} 63. Rg5 {[%emt 0:01:03]} Rh7 {[%emt 0:00:56]} 64. Kc4 {[%emt 0:00:42]} Ka6 {[%emt 0:00:20]} 65. Kc5 {[%emt 0:00:29]} Kb7 {[%emt 0:00:08]} 66. a6+ {[%emt 0:01:37]} Kxa6 {[%emt 0:00:32]} 67. Kxc6 {[%emt 0:00:04]} Rh6+ {[%emt 0:00:15]} 68. Kc5 {[%emt 0:00:04]} Rh7 {[%emt 0:00:10]} 69. Rg6+ {[%emt 0:00:10]} Kb7 {[%emt 0:00:06]} 70. b5 {[%emt 0:00:08]} Rh5+ {[%emt 0:00:16]} 71. Kb4 {[%emt 0:00:05]} Rh1 {[%emt 0:00:49]} 72. c4 {[%emt 0:00:24]} Rf1 {[%emt 0:00:19]} 73. Rg7+ {[%emt 0:00:08]} Kb8 {[%emt 0:00:10]} 74. c5 {[%emt 0:00:28]} 1-0